fUST/lending_fUST_20240121
["ID","MTS","AMOUNT","RATE_DAILY","PERIOD"]
[312317915,1705770649625,-500.0,0.00041369,31]
[312317916,1705770649634,-500.0,0.00041369,31]
[312317917,1705770649644,-500.0,0.00041369,31]
[312317918,1705770649653,-500.0,0.00041369,31]
[312317919,1705770649663,-711.36,0.00041369,31]
[312317920,1705770649672,-500.0,0.00041369,31]
[312317921,1705770649681,-333.28170327,0.00041369,31]
[312317922,1705770649691,-500.0,0.00041369,31]
[312317923,1705770649700,-408.86608001,0.00041369,31]
[312317924,1705770649709,-500.0,0.00041369,31]
[312317925,1705770649718,-500.0,0.00041369,31]
[312317926,1705770649728,-500.0,0.00041369,31]
[312317927,1705770649737,-534.09772747,0.00041369,31]
[312317928,1705770649746,-500.0,0.00041369,31]
[312317929,1705770649755,-500.0,0.00041369,31]
[312317930,1705770649765,-667.38,0.00041369,31]
[312317931,1705770649774,-500.0,0.00041369,31]
[312317932,1705770649783,-500.0,0.00041369,31]
[312317933,1705770649792,-500.0,0.00041369,31]
[312317934,1705770649801,-500.0,0.00041369,31]
[312317935,1705770649811,-500.0,0.00041369,31]
[312317936,1705770649821,-500.0,0.00041369,31]
[312317937,1705770649830,-386.2826957,0.00041369,31]
[312317938,1705770649839,-708.55,0.00041369,31]
[312317939,1705770649848,-604.4,0.00041369,31]
[312317940,1705770649857,-10000.0,0.00041369,10]
[312317941,1705770649866,-500.0,0.00041369,31]
[312317942,1705770649876,-521.74,0.00041369,31]
[312317943,1705770649885,-500.0,0.00041369,31]
[312317944,1705770649893,-500.0,0.00041369,31]
[312317945,1705770649903,-289.22019955,0.00041369,31]
[312317946,1705770649912,-500.0,0.00041369,31]
[312317947,1705770649921,-1000.0,0.00041369,2]
[312317948,1705770649930,-687.89,0.00041369,31]
[312317949,1705770649939,-581.38596885,0.00041369,31]
[312317950,1705770649948,-500.0,0.00041369,31]
[312317951,1705770649957,-721.31,0.00041369,31]
[312317952,1705770649967,-500.0,0.00041369,31]
[312317953,1705770649976,-695.1,0.00041369,31]
[312317954,1705770649985,-284.21805672,0.00041369,31]
[312317955,1705770649998,-635.84972635,0.00041369,31]
[312317956,1705770650018,-500.0,0.00041369,31]
[312317957,1705770650112,-500.0,0.00041369,31]
[312317958,1705770650122,-500.0,0.00041369,31]
[312317959,1705770650130,-500.0,0.00041369,31]
[312317960,1705770650139,-500.0,0.00041369,31]
[312317961,1705770650149,-544.34,0.00041369,31]
[312317962,1705770650159,-1201.37,0.00041369,31]
[312317963,1705770650169,-583.96,0.00041369,31]
[312317964,1705770650178,-500.0,0.00041369,31]
[312317965,1705770650188,-500.0,0.00041369,31]
[312317966,1705770650197,-500.0,0.00041369,31]
[312317967,1705770650206,-500.0,0.00041369,31]
[312317968,1705770650215,-1391.5,0.00041369,31]
[312317969,1705770650225,-596.81568235,0.00041369,31]
[312317970,1705770650235,-500.0,0.00041369,31]
[312317971,1705770650245,-500.0,0.00041369,31]
[312317972,1705770650254,-500.0,0.00041369,31]
[312317973,1705770650263,-449.00948959,0.00041369,31]
[312317974,1705770650559,530.84656699,0.00019724,2]
[312317975,1705770650702,-386.12132242,0.00028794,2]
[312317976,1705770650712,-113.87867758,0.00040961,8]
[312317977,1705770665579,530.84656699,0.00019724,2]
[312317980,1705770887137,94.61322005,0.00019724,2]
[312317992,1705771299448,166.23479053,0.0001775,2]
[312317993,1705771331144,2226.19575142,0.00019328,2]
[312317994,1705771334852,1468.00454349,0.00014792,2]
[312317995,1705771336235,154.78330338,0.0001775,2]
[312317996,1705771337656,5984.78161118,0.0001775,2]
[312317997,1705771337687,10000.0,0.0001775,2]
[312317998,1705771337718,10000.0,0.0001775,2]
[312317999,1705771337746,25000.0,0.0001775,2]
[312318000,1705771337775,25000.0,0.0001775,2]
[312318001,1705771337804,20084.04125586,0.0001775,2]
[312318002,1705771338058,154.78330338,0.0001775,2]
[312318003,1705771338409,1482.07644451,0.0001775,5]
[312318004,1705771350239,155.43325408,0.0001775,2]
[312318005,1705771352236,216.13244102,0.0001775,2]
[312318009,1705771470093,173.8931908,0.00017516,2]
[312318011,1705771481175,2733.64011035,0.00018145,2]
[312318014,1705771496041,5000.0,0.00017959,2]
[312318015,1705771521020,175.996739,0.0001729,2]
[312318016,1705771535208,564.03409177,0.00017516,2]
[312318033,1705771779120,160.83305457,0.00017917,2]
[312318034,1705771803608,19099.13611466,0.00017015,2]
[312318035,1705771803639,5800.86388534,0.00017015,2]
[312318069,1705771832199,-301.83960351,0.00018008,2]
[312318070,1705771832209,-165.08113318,0.00018009,2]
[312318071,1705771832219,-1578.85296989,0.00018009,2]
[312318072,1705771832228,-323.47024933,0.00018009,2]
[312318074,1705771832238,-154.78330338,0.00018009,3]
[312318076,1705771832248,-561.46174088,0.00018009,2]
[312318077,1705771832257,-155.96557472,0.00018009,2]
[312318079,1705771832267,-874.04705685,0.00018009,2]
[312318081,1705771832277,-154.78330338,0.0001801,2]
[312318083,1705771832286,-364.18564183,0.0001801,2]
[312318089,1705771832677,-88.38623601,0.0001801,2]
[312318090,1705771832687,-2717.94114909,0.0001801,2]
[312318091,1705771832699,-3744.67548548,0.0001801,2]
[312318121,1705771839217,-213.36686653,0.00018007,2]
[312318122,1705771839226,-918.4287939,0.00018007,2]
[312318124,1705771839236,-154.78330338,0.00018007,2]
[312318126,1705771839245,-3716.53539619,0.0001801,2]
[312318129,1705771839257,-352.63326895,0.0001801,2]
[312318130,1705771839265,-4093.58744221,0.0001801,2]
[312318133,1705771839276,-3291.94577981,0.0001801,2]
[312318135,1705771839288,-13482.44344749,0.0001801,2]
[312318137,1705771839297,-616.55903708,0.00018011,2]
[312318139,1705771839306,-7957.69581218,0.00018011,2]
[312318141,1705771839315,-261.05411193,0.00018011,2]
[312318142,1705771839324,-272.47884373,0.00018011,2]
[312318144,1705771839334,-154.78330338,0.00018011,2]
[312318146,1705771839343,-13715.67412401,0.00018011,2]
[312318148,1705771839352,-903.32634326,0.00018012,2]
[312318150,1705771839362,-294.77252324,0.00018012,2]
[312318152,1705771839371,-1589.56066404,0.00018012,2]
[312318154,1705771839380,-211.47192424,0.00018012,2]
[312318156,1705771839390,-555.15795489,0.00018013,2]
[312318158,1705771839399,-1293.3633064,0.00018013,2]
[312318160,1705771839408,-36953.29134027,0.00018013,2]
[312318162,1705771839418,-77978.42705462,0.00018014,2]
[312318165,1705771839444,-262.3827165,0.00018014,2]
[312318167,1705771839455,-264.938001,0.00018014,2]
[312318170,1705771839471,-419.11,0.00018014,2]
[312318173,1705771839491,-2259.39839316,0.00018014,2]
[312318175,1705771839500,-18898.32158241,0.00018014,2]
[312318177,1705771839509,-1085.34508471,0.00018034,7]
[312318178,1705771839519,-2631.92911883,0.00018036,2]
[312318180,1705771839530,-251.0569096,0.00018036,2]
[312318182,1705771839539,-12177.30411079,0.00018036,2]
[312318184,1705771839552,-3128.22508425,0.00018036,2]
[312318186,1705771839561,-156.7090362,0.00018037,2]
[312318188,1705771839571,-154.86062544,0.00018037,2]
[312318190,1705771839580,-156.8291837,0.00018037,2]
[312318192,1705771839589,-155.3169924,0.00018037,2]
[312318194,1705771839599,-163.07750006,0.00018037,2]
[312318196,1705771839608,-607.73189313,0.00018037,2]
[312318198,1705771839617,-2102.56602861,0.00018037,2]
[312318210,1705771839626,-18964.106388,0.00018038,2]
[312318212,1705771839784,-326.13859064,0.00018039,2]
[312318214,1705771839794,-154.86062544,0.00018132,2]
[312318216,1705771839803,-170.79924496,0.00018133,2]
[312318219,1705771839812,-875.93915164,0.00018136,2]
[312318222,1705771839822,-302.17762076,0.00018136,2]
[312318224,1705771839832,-215.91799592,0.00018136,2]
[312318226,1705771839841,-260.78466531,0.0001814,2]
[312318227,1705771839850,-751.00503555,0.00018145,2]
[312318229,1705771839859,-20895.55414875,0.00018509,2]
[312318231,1705771839868,-154.79876161,0.00018514,2]
[312318233,1705771839877,-254.02996633,0.00018515,2]
[312318235,1705771839886,-154.79876161,0.00018515,2]
[312318237,1705771839895,-526.58372141,0.00018515,2]
[312318239,1705771839904,-1992.87766821,0.00018515,2]
[312318241,1705771839913,-687.73320843,0.00018515,2]
[312318243,1705771839922,-154.79876161,0.00018515,2]
[312318244,1705771839930,-154.79876161,0.00018515,2]
[312318246,1705771839940,-8001.61067914,0.00018515,2]
[312318248,1705771839949,-470.52459336,0.00018521,2]
[312318250,1705771839958,-154.79876161,0.00018522,2]
[312318252,1705771839967,-243.04898199,0.00018522,2]
[312318254,1705771839977,-1581.76828075,0.00019,2]
[312318256,1705771839986,-170.127689,0.00019178,2]
[312318258,1705771839995,-1114.14548175,0.000195,2]
[312318259,1705771840004,-2062.0796706,0.00019525,2]
[312318261,1705771840013,-21675.6082244,0.00019525,2]
[312318263,1705771840023,-824.03065617,0.000197,2]
[312318265,1705771840032,-282.3714786,0.00019722,2]
[312318267,1705771840041,-155.13921677,0.00019722,2]
[312318269,1705771840050,-13941.95130771,0.00019722,2]
[312318271,1705771840058,-214.49985454,0.00019722,2]
[312318273,1705771840067,-222.15590729,0.00019722,2]
[312318275,1705771840076,-155.16973362,0.00019722,2]
[312318277,1705771840085,-176.74369374,0.00019722,2]
[312318278,1705771840094,-155.27937595,0.00019722,2]
[312318280,1705771840103,-197.87398921,0.00019722,2]
[312318282,1705771840112,-155.2035582,0.00019722,2]
[312318284,1705771840121,-155.22525312,0.00019722,2]
[312318286,1705771840130,-197.33809252,0.00019722,2]
[312318288,1705771840139,-154.79876161,0.00019722,2]
[312318290,1705771840148,-105.85947663,0.00019724,2]
[312318292,1705771840157,-155.07458334,0.00019724,2]
[312318294,1705771840166,-620.06102847,0.00019724,2]
[312318296,1705771840175,-200.0,0.00019842,2]
[312318298,1705771840183,-2083.53906819,0.0002,2]
[312318299,1705771840192,-300.0,0.0002,2]
[312318301,1705771840201,-154.78330338,0.0002,2]
[312318303,1705771840210,-323.01933147,0.0002,2]
[312318305,1705771840219,-678.35754423,0.0002,2]
[312318307,1705771840229,-154.78330338,0.0002,2]
[312318309,1705771840237,-154.78330338,0.0002,2]
[312318311,1705771840247,-156.71629179,0.0002,2]
[312318313,1705771840255,-1197.48170656,0.0002,2]
[312318314,1705771840264,-849.96832798,0.0002,2]
[312318316,1705771840274,-571.02881103,0.0002,2]
[312318318,1705771840284,-1277.60717608,0.00021,2]
[312318320,1705771840293,-327.38324213,0.00021,2]
[312318322,1705771840302,-326.13859064,0.00021274,2]
[312318324,1705771840310,-280.0,0.00021826,7]
[312318326,1705771840319,-166.666666,0.00021918,2]
[312318329,1705771840328,-155.51025165,0.00022,2]
[312318331,1705771840337,-293.34385947,0.00022,4]
[312318333,1705771840346,-3966.85623058,0.00022,2]
[312318335,1705771840355,-425.80364021,0.00022,2]
[312318337,1705771840366,-166.666666,0.00022431,2]
[312318339,1705771840375,-166.666666,0.00022944,2]
[312318341,1705771840384,-1570.89243892,0.00023,2]
[312318343,1705771840393,-166.666666,0.00023456,2]
[312318344,1705771840403,-166.666666,0.00023969,2]
[312318346,1705771840412,-4012.5594856,0.00024,2]
[312318348,1705771840421,-391.0,0.00024009,7]
[312318350,1705771840430,-166.666666,0.00024482,2]
[312318352,1705771840439,-326.13859064,0.00024509,2]
[312318354,1705771840448,-380.0,0.00024658,2]
[312318356,1705771840457,-528.96685326,0.00024999,2]
[312318358,1705771840466,-500.0,0.00024999,2]
[312318360,1705771840476,-500.0,0.00024999,2]
[312318362,1705771840484,-500.0,0.00024999,2]
[312318363,1705771840494,-500.0,0.00024999,2]
[312318365,1705771840503,-500.0,0.00024999,2]
[312318367,1705771840512,-500.0,0.00024999,2]
[312318369,1705771840522,-420.53640236,0.00024999,2]
[312318371,1705771840531,-500.0,0.00024999,2]
[312318373,1705771840540,-500.0,0.00024999,2]
[312318375,1705771840549,-500.0,0.00024999,2]
[312318376,1705771840562,-300.0,0.00024999,2]
[312318378,1705771840571,-200.0,0.00024999,2]
[312318380,1705771840580,-500.0,0.00024999,2]
[312318382,1705771840589,-500.0,0.00024999,2]
[312318384,1705771840599,-500.0,0.00024999,2]
[312318386,1705771840608,-500.0,0.00024999,2]
[312318388,1705771840618,-500.0,0.00024999,2]
[312318389,1705771840627,-171.18052685,0.00024999,2]
[312318390,1705771840637,-500.0,0.00024999,2]
[312318391,1705771840646,-454.1703604,0.00024999,2]
[312318392,1705771840656,-482.16182416,0.00024999,2]
[312318393,1705771840665,-500.0,0.00024999,2]
[312318394,1705771840674,-500.0,0.00024999,2]
[312318395,1705771840683,-500.0,0.00024999,2]
[312318396,1705771840692,-500.0,0.00024999,2]
[312318397,1705771840702,-500.0,0.00024999,2]
[312318398,1705771840711,-4721.06450288,0.00025,2]
[312318399,1705771840720,-1045.90652664,0.00025,2]
[312318400,1705771840730,-155.5855391,0.00025,2]
[312318401,1705771840738,-155.16885659,0.00025,2]
[312318402,1705771840747,-154.78330338,0.00025,2]
[312318403,1705771840756,-679.35498147,0.00025,2]
[312318404,1705771840766,-200.0,0.00025479,2]
[312318405,1705771840775,-977.70118808,0.00025826,2]
[312318406,1705771840784,-169.888694,0.00026107,2]
[312318407,1705771840793,-200.0,0.00026409,15]
[312318408,1705771840803,-348.0,0.00026409,15]
[312318409,1705771840813,-16298.5,0.00027397,3]
[312318410,1705771840822,-13582.08,0.00027397,3]
[312318411,1705771840831,-11318.4,0.00027397,3]
[312318412,1705771840840,-351.009366,0.000274,2]
[312318413,1705771840849,-326.13859064,0.00027743,2]
[312318414,1705771840859,-305.59076867,0.00028,2]
[312318415,1705771840868,-290.16476431,0.00028,2]
[312318416,1705771840877,-7101.78707942,0.00028696,2]
[312318417,1705771840886,-154.78330338,0.00028696,2]
[312318418,1705771840895,-1252.98171166,0.00028696,2]
[312318419,1705771840904,-2814.12892951,0.00028696,2]
[312318420,1705771840913,-4180.50082299,0.00028696,2]
[312318421,1705771840922,-1266.38115634,0.00028696,2]
[312318422,1705771840931,-160.96626873,0.00028696,2]
[312318424,1705771840940,-8758.89884321,0.00028696,2]
[312318425,1705771840949,-2708.01837137,0.00028696,5]
[312318427,1705771840958,-915.93181322,0.00028696,2]
[312318429,1705771840967,-2822.8788174,0.00028697,2]
[312318431,1705771840976,-276000.0,0.00028698,2]
[312318433,1705771840985,-190.783797,0.00028767,2]
[312318435,1705771840993,-314.87795,0.00028767,2]
[312318437,1705771841002,-200.0,0.0002905,15]
[312318439,1705771841011,-200.0,0.0002905,15]
[312318441,1705771841020,-368.0,0.0002905,15]
[312318443,1705771841029,-620.00167827,0.0002937,2]
[312318445,1705771841039,-620.00027882,0.0002937,2]
[312318447,1705771841048,-314.87795,0.00029648,2]
[312318449,1705771841057,-195.24830445,0.0003,4]
[312318451,1705771841066,-200.37400988,0.0003,2]
[312318453,1705771841075,-657.10397362,0.0003,3]
[312318455,1705771841084,-464.45635989,0.0003,2]
[312318457,1705771841095,-2370.49814603,0.0003,2]
[312318459,1705771841105,-429.0,0.0003,2]
[312318461,1705771841115,-500.0,0.00030136,2]
[312318463,1705771841124,-153.0,0.00030137,2]
[312318465,1705771841133,-170.8109915,0.00030137,2]
[312318467,1705771841142,-156.5731179,0.00030137,2]
[312318469,1705771841152,-153.2749664,0.00030137,2]
[312318471,1705771841161,-153.0,0.00030137,2]
[312318473,1705771841170,-418.0246281,0.00030137,2]
[312318475,1705771841179,-153.0,0.00030137,2]
[312318477,1705771841187,-308.5597583,0.00030137,2]
[312318478,1705771841196,-500.0,0.00030273,2]
[312318480,1705771841205,-500.0,0.0003041,2]
[312318482,1705771841214,-314.87795,0.00030528,2]
[312318484,1705771841224,-500.0,0.00030547,2]
[312318486,1705771841233,-500.0,0.00030684,2]
[312318488,1705771841243,-240.0,0.00030715,30]
[312318490,1705771841252,-150.5,0.00030725,30]
[312318492,1705771841260,-150.5,0.00030735,30]
[312318494,1705771841269,-232.46,0.00030735,30]
[312318496,1705771841278,-500.0,0.00030821,2]
[312318498,1705771841287,-620.00008391,0.00030838,2]
[312318500,1705771841296,-620.00001394,0.00030838,2]
[312318502,1705771841305,-500.0,0.00030958,2]
[312318504,1705771841315,-326.13859064,0.00030978,2]
[312318506,1705771841324,-238.14143998,0.00031,4]
[312318508,1705771841333,-424.75135024,0.00031,2]
[312318510,1705771841341,-155.0,0.00031,2]
[312318512,1705771841351,-188.8,0.00031077,2]
[312318514,1705771841360,-475.68781302,0.00031077,2]
[312318516,1705771841369,-457.79124181,0.00031077,4]
[312318518,1705771841378,-620.66988602,0.00031077,4]
[312318520,1705771841387,-412.32449765,0.00031077,4]
[312318522,1705771841396,-500.0,0.00031077,4]
[312318524,1705771841405,-500.0,0.00031077,4]
[312318526,1705771841414,-500.0,0.00031077,4]
[312318528,1705771841423,-555.52663894,0.00031077,4]
[312318530,1705771841432,-164.92979905,0.00031077,4]
[312318532,1705771841441,-79213.0335981,0.00031078,6]
[312318533,1705771841450,-50000.0,0.00031078,6]
[312318536,1705771841459,-50000.0,0.00031078,6]
[312318538,1705771841469,-75468.53655994,0.00031078,6]
[312318540,1705771841478,-36129.25156373,0.00031078,4]
[312318542,1705771841488,-7458.96179479,0.00031078,5]
[312318543,1705771841500,-500.0,0.00031095,2]
[312318545,1705771841509,-500.0,0.00031232,2]
[312318547,1705771841518,-500.0,0.00031369,2]
[312318549,1705771841527,-314.87795,0.00031409,2]
[312318551,1705771841536,-500.0,0.00031506,2]
[312318553,1705771841547,-500.0,0.00031643,2]
[312318555,1705771841558,-500.0,0.0003178,2]
[312318557,1705771841567,-500.0,0.00031917,2]
[312318559,1705771841576,-200.0,0.00031955,15]
[312318561,1705771841585,-200.0,0.00031955,15]
[312318563,1705771841595,-200.0,0.00031955,15]
[312318565,1705771841604,-200.0,0.00031955,15]
[312318567,1705771841613,-275.0,0.00031955,15]
[312318569,1705771841622,-153.52997654,0.00031999,2]
[312318571,1705771841632,-1000.0,0.00031999,14]
[312318573,1705771841642,-1000.0,0.00031999,14]
[312318575,1705771841651,-1000.0,0.00031999,14]
[312318577,1705771841660,-1000.0,0.00031999,14]
[312318579,1705771841669,-302.72586559,0.00031999,14]
[312318581,1705771841678,-342242.23999023,0.00032,4]
[312318583,1705771841687,-154.78330338,0.00032,4]
[312318585,1705771841697,-500.0,0.00032054,2]
[312318587,1705771841706,-151.0,0.00032262,2]
[312318589,1705771841715,-314.87795,0.0003229,2]
[312318591,1705771841725,-199.840184,0.00032368,2]
[312318592,1705771841733,-2488.2723914,0.00032368,2]
[312318594,1705771841742,-8125.33089325,0.00032368,2]
[312318596,1705771841751,-211.30114986,0.00032368,2]
[312318598,1705771841761,-497.65447828,0.00032368,2]
[312318600,1705771841770,-155.0,0.0003237,2]
[312318602,1705771841779,-1094.47895322,0.000325,20]
[312318604,1705771841788,-250.0,0.00032876,7]
[312318606,1705771841797,-500.0,0.00032876,7]
[312318608,1705771841806,-465.50241451,0.00032876,7]
[312318610,1705771841816,-247.39469859,0.00032876,7]
[312318612,1705771841826,-274.67474509,0.00032876,7]
[312318614,1705771841835,-500.0,0.00032876,7]
[312318616,1705771841844,-541.64497921,0.00032876,7]
[312318618,1705771841853,-590.6277703,0.00032876,7]
[312318620,1705771841862,-500.0,0.00032876,7]
[312318622,1705771841871,-486.62136812,0.00032876,7]
[312318624,1705771841880,-226.70007997,0.00032876,7]
[312318626,1705771841889,-500.0,0.00032876,7]
[312318628,1705771841898,-500.0,0.00032876,7]
[312318630,1705771841907,-500.0,0.00032876,7]
[312318632,1705771841916,-500.0,0.00032876,7]
[312318634,1705771841925,-500.0,0.00032876,7]
[312318636,1705771841934,-500.0,0.00032876,7]
[312318638,1705771841943,-500.0,0.00032876,7]
[312318639,1705771841951,-190.40230177,0.00032876,7]
[312318641,1705771841961,-500.0,0.00032876,7]
[312318643,1705771841970,-600.0,0.00032876,7]
[312318645,1705771841980,-503.38539514,0.00032876,7]
[312318647,1705771841989,-650.0,0.00032876,7]
[312318649,1705771841998,-500.0,0.00032876,7]
[312318651,1705771842007,-500.0,0.00032876,7]
[312318653,1705771842017,-500.0,0.00032876,7]
[312318655,1705771842026,-150.0,0.00032999,2]
[312318657,1705771842036,-154.78330338,0.00033,4]
[312318659,1705771842045,-6763.78500734,0.00033,4]
[312318661,1705771842054,-171.0,0.00033,2]
[312318663,1705771842063,-314.87795,0.0003317,2]
[312318665,1705771842072,-151.0,0.00033446,2]
[312318667,1705771842082,-155.0,0.0003374,2]
[312318669,1705771842090,-314.87795,0.00034051,2]
[312318671,1705771842099,-243.452,0.00034212,2]
[312318673,1705771842109,-500.0,0.00034246,7]
[312318675,1705771842118,-151.0,0.00034631,2]
[312318677,1705771842126,-190.783797,0.00034932,2]
[312318679,1705771842135,-314.87795,0.00034932,2]
[312318681,1705771842144,-154.78330338,0.00035,4]
[312318683,1705771842153,-3119.96924767,0.00035,20]
[312318684,1705771842162,-154.78330338,0.00035,6]
[312318685,1705771842171,-2085.08363542,0.00035,4]
[312318686,1705771842180,-31980.30894113,0.00035,4]
[312318687,1705771842189,-425.21360235,0.00035,2]
[312318688,1705771842198,-333.12649891,0.00035,4]
[312318689,1705771842207,-303.81764184,0.00035,2]
[312318690,1705771842217,-155.0,0.0003511,2]
[312318691,1705771842324,-200.0,0.00035151,15]
[312318692,1705771842333,-200.0,0.00035151,15]
[312318693,1705771842342,-200.0,0.00035151,15]
[312318694,1705771842351,-200.0,0.00035151,15]
[312318695,1705771842360,-200.0,0.00035151,15]
[312318696,1705771842369,-200.0,0.00035151,15]
[312318697,1705771842378,-305.0,0.00035151,15]
[312318698,1705771842386,-500.0,0.000353,7]
[312318699,1705771842395,-500.0,0.000353,7]
[312318700,1705771842404,-4425.50824305,0.000355,14]
[312318701,1705771842413,-750.0,0.00035616,7]
[312318702,1705771842422,-182.36949,0.00035616,120]
[312318703,1705771842430,-314.87795,0.00035812,2]
[312318704,1705771842439,-151.0,0.00035816,4]
[312318705,1705771842448,-5000.0,0.00035956,2]
[312318706,1705771842458,-160.0,0.00036046,10]
[312318707,1705771842467,-91183.97100621,0.00036047,2]
[312318710,1705771842626,-5118.0474146,0.00036047,2]
[312318711,1705771842639,-67716.21076587,0.00036047,2]
[312318712,1705771842648,-87973.75692622,0.00036047,2]
[312318714,1705771842657,-160.81104418,0.00036205,2]
[312318715,1705771842666,-155.0,0.0003648,2]
[312318717,1705771842676,-314.87795,0.00036693,2]
[312318718,1705771842685,-150.78889555,0.0003678,2]
[312318720,1705771842695,-154.78330338,0.00036865,7]
[312318722,1705771842704,-1000.0,0.00036986,7]
[312318724,1705771842713,-154.78330338,0.00037,4]
[312318729,1705771842724,-150.0,0.00037,30]
[312318730,1705771842733,-151.0,0.00037,4]
[312318733,1705771842743,-150.0,0.000372,30]
[312318736,1705771842752,-302.0,0.0003726,2]
[312318739,1705771842761,-300.0,0.0003726,2]
[312318741,1705771842771,-301.57779109,0.00037398,4]
[312318744,1705771842780,-212.642763,0.000374,30]
[312318747,1705771842789,-314.87795,0.00037573,2]
[312318750,1705771842798,-263.54542461,0.0003785,2]
[312318752,1705771842807,-2139.23248446,0.00038,4]
[312318754,1705771842817,-603.15558218,0.00038027,7]
[312318757,1705771842826,-151.0,0.00038185,4]
[312318759,1705771842835,-1250.0,0.00038356,7]
[312318762,1705771842844,-314.87795,0.00038454,2]
[312318765,1705771842853,-166.76045536,0.00038666,4]
[312318768,1705771842862,-200.0,0.00038666,30]
[312318771,1705771842871,-200.0,0.00038666,30]
[312318774,1705771842881,-200.0,0.00038666,30]
[312318776,1705771842890,-200.0,0.00038666,30]
[312318780,1705771842908,-200.0,0.00038666,30]
[312318782,1705771842921,-200.0,0.00038666,30]
[312318784,1705771842932,-200.0,0.00038666,30]
[312318786,1705771842941,-344.0,0.00038666,30]
[312318788,1705771842950,-10988.52270715,0.00038913,5]
[312318790,1705771842960,-1206.31116437,0.00038989,30]
[312318792,1705771842969,-206.98036634,0.00038995,2]
[312318794,1705771842979,-314.87795,0.00039335,2]
[312318796,1705771842988,-151.0,0.0003937,4]
[312318797,1705771842998,-5000.0,0.00039595,7]
[312318798,1705771843007,-5000.0,0.00039595,7]
[312318799,1705771843016,-5000.0,0.00039595,7]
[312318800,1705771843025,-5000.0,0.00039595,7]
[312318801,1705771843035,-245.17457541,0.000396,30]
[312318802,1705771843044,-8193.12304962,0.00039699,7]
[312318803,1705771843054,-1500.0,0.00039726,7]
[312318804,1705771843063,-5769.07722314,0.0003999,4]
[312318805,1705771843073,-154.78330338,0.0004,7]
[312318806,1705771843083,-154.78330338,0.0004,4]
[312318807,1705771843092,-1599.91772387,0.0004,4]
[312318808,1705771843102,-1000.0,0.0004,40]
[312318809,1705771843111,-592.4338243,0.0004,30]
[312318810,1705771843121,-1845.46619047,0.0004,4]
[312318811,1705771843130,-500.0,0.0004,10]
[312318812,1705771843139,-290.53429954,0.0004,4]
[312318813,1705771843149,-150.0,0.0004,32]
[312318814,1705771843158,-249.35630735,0.0004,2]
[312318815,1705771843167,-156.965518,0.00040133,2]
[312318816,1705771843177,-154.993163,0.00040133,2]
[312318817,1705771843186,-314.87795,0.00040215,2]
[312318818,1705771843196,-333.2863,0.00040342,7]
[312318819,1705771843206,-151.0,0.00040555,21]
[312318820,1705771843216,-2574.0,0.0004063,7]
[312318821,1705771843226,-1500.0,0.000407,3]
[312318822,1705771843236,-1455.91236555,0.00040949,2]
[312318823,1705771843245,-5000.0,0.00040956,4]
[312318824,1705771843255,-155.21514943,0.00040959,2]
[312318825,1705771843265,-227.04604148,0.0004096,4]
[312318826,1705771843275,-555.69536749,0.0004096,10]
[312318827,1705771843285,-196.68331044,0.00040961,4]
[312318828,1705771843295,-264.78480522,0.00040961,4]
[312318829,1705771843305,-4938.6206514,0.00040961,4]
[312318830,1705771843314,-763.70587335,0.00040961,2]
[312318831,1705771843324,-323.57586002,0.00040961,3]
[312318832,1705771843333,-980.8946807,0.00040961,4]
[312318833,1705771843342,-384.33930543,0.00040961,4]
[312318834,1705771843352,-650.59132824,0.00040961,4]
[312318835,1705771843361,-555.69536749,0.00040983,10]
[312318836,1705771843373,-555.69536749,0.00040983,10]